[Event "November 21 Early 2023"]
[Site "https://www.chess.com"]
[Date "2023.11.21"]
[Round "4"]
[White "Zakaryan, David"]
[Black "szachmistrz2500"]
[Result "1-0"]
[Board "94"]
[TimeControl "180+1"]
[WhiteFideId "24101923"]
[WhiteElo "2323"]
[BlackElo "2443"]
[WhiteTeam "RUS"]
[WhiteClock "0:00:24"]
[BlackClock "0:01:03"]

1. e4 {[%clk 0:03:00]}  c5 {[%clk 0:02:52]} 2. Nf3 {[%clk 0:03:00]}  d6 {[%clk 0:02:52]} 3. d4 {[%clk 0:03:01]}  cxd4 {[%clk 0:02:53]} 4. Nxd4 {[%clk 0:03:02]}  Nf6 {[%clk 0:02:53]} 5. Nc3 {[%clk 0:03:02]}  a6 {[%clk 0:02:53]} 6. Be3 {[%clk 0:03:03]}  e5 {[%clk 0:02:53]} 7. Nf3 {[%clk 0:03:03]}  h6 {[%clk 0:02:47]} 8. Bc4 {[%clk 0:03:03]}  Qc7 {[%clk 0:02:44]} 9. Qe2 {[%clk 0:03:02]}  b5 {[%clk 0:02:44]} 10. Nd5 {[%clk 0:02:46]}  Nxd5 {[%clk 0:02:41]} 11. Bxd5 {[%clk 0:02:47]}  Bb7 {[%clk 0:02:41]} 12. a4 {[%clk 0:02:33]}  b4 {[%clk 0:02:36]} 13. a5 {[%clk 0:02:30]}  Nd7 {[%clk 0:02:35]} 14. O-O {[%clk 0:02:25]}  Be7 {[%clk 0:02:32]} 15. Rfc1 {[%clk 0:02:19]}  Bxd5 {[%clk 0:02:31]} 16. exd5 {[%clk 0:02:18]}  O-O {[%clk 0:02:31]} 17. c4 {[%clk 0:02:10]}  bxc3 {[%clk 0:02:30]} 18. Rxc3 {[%clk 0:02:09]}  Qb7 {[%clk 0:02:29]} 19. Rc6 {[%clk 0:01:44]}  Nf6 {[%clk 0:02:26]} 20. Qd2 {[%clk 0:01:18]}  Rab8 {[%clk 0:02:19]} 21. Bb6 {[%clk 0:01:09]}  Rfc8 {[%clk 0:01:52]} 22. Rac1 {[%clk 0:01:09]}  Qd7 {[%clk 0:01:51]} 23. h3 {[%clk 0:00:55]}  Bd8 {[%clk 0:01:45]} 24. Qc2 {[%clk 0:00:43]}  Rxc6 {[%clk 0:01:30]} 25. dxc6 {[%clk 0:00:43]}  Qc8 {[%clk 0:01:19]} 26. c7 {[%clk 0:00:43]}  Bxc7 {[%clk 0:01:19]} 27. Qxc7 {[%clk 0:00:42]}  Qxc7 {[%clk 0:01:19]} 28. Rxc7 {[%clk 0:00:42]}  e4 {[%clk 0:01:18]} 29. Nd4 {[%clk 0:00:41]}  d5 {[%clk 0:01:19]} 30. b4 {[%clk 0:00:34]}  Ne8 {[%clk 0:01:16]} 31. Rd7 {[%clk 0:00:33]}  Rc8 {[%clk 0:01:16]} 32. Rd8 {[%clk 0:00:31]}  Rxd8 {[%clk 0:01:15]} 33. Bxd8 {[%clk 0:00:31]}  Nd6 {[%clk 0:01:15]} 34. Bc7 {[%clk 0:00:26]}  Nc8 {[%clk 0:01:13]} 35. b5 {[%clk 0:00:20]}  axb5 {[%clk 0:01:14]} 36. Nxb5 {[%clk 0:00:21]}  Kf8 {[%clk 0:01:14]} 37. a6 {[%clk 0:00:22]}  Ke7 {[%clk 0:01:14]} 38. a7 {[%clk 0:00:22]}  Nxa7 {[%clk 0:01:14]} 39. Nxa7 {[%clk 0:00:23]}  d4 {[%clk 0:01:15]} 40. Bb6 {[%clk 0:00:23]}  d3 {[%clk 0:01:14]} 41. Be3 {[%clk 0:00:23]}  Kd6 {[%clk 0:01:13]} 42. Nb5+ {[%clk 0:00:23]}  Kd5 {[%clk 0:01:13]} 43. Nc3+ {[%clk 0:00:24]}  Ke5 {[%clk 0:01:13]} 44. g3 {[%clk 0:00:24]}  f5 {[%clk 0:01:12]} 45. h4 {[%clk 0:00:24]}  h5 {[%clk 0:01:09]} 46. Kf1 {[%clk 0:00:24]}  Kd6 {[%clk 0:01:07]} 47. Ke1 {[%clk 0:00:24]}  Ke5 {[%clk 0:01:08]} 48. Kd2 {[%clk 0:00:25]}  g6 {[%clk 0:01:08]} 49. Kc1 {[%clk 0:00:25]}  f4 {[%clk 0:01:06]} 50. Bxf4+ {[%clk 0:00:24]}  Kf5 {[%clk 0:01:06]} 51. Be3 {[%clk 0:00:24]}  Ke5 {[%clk 0:01:03]} 52. Kb2 {[%clk 0:00:24]} 1-0

[Event "November 21 Early 2023"]
[Site "https://www.chess.com"]
[Date "2023.11.21"]
[Round "4"]
[White "Diaz Perez, Michel Alejandro"]
[Black "Yeritsyan, Hayk"]
[Result "1-0"]
[Board "95"]
[TimeControl "180+1"]
[WhiteFideId "3517179"]
[BlackFideId "13307320"]
[WhiteElo "2398"]
[BlackElo "2130"]
[WhiteTeam "CUB"]
[BlackTeam "ARM"]
[WhiteClock "0:00:13"]
[BlackClock "0:00:01"]

1. e4 {[%clk 0:03:00]}  e6 {[%clk 0:02:59]} 2. d3 {[%clk 0:03:00]}  c5 {[%clk 0:02:57]} 3. Nd2 {[%clk 0:03:01]}  Nc6 {[%clk 0:02:57]} 4. Ngf3 {[%clk 0:02:59]}  d5 {[%clk 0:02:57]} 5. g3 {[%clk 0:02:59]}  Nf6 {[%clk 0:02:58]} 6. Bg2 {[%clk 0:02:57]}  Be7 {[%clk 0:02:51]} 7. O-O {[%clk 0:02:56]}  b5 {[%clk 0:02:50]} 8. Re1 {[%clk 0:02:55]}  a5 {[%clk 0:02:49]} 9. h4 {[%clk 0:02:48]}  a4 {[%clk 0:02:48]} 10. Qe2 {[%clk 0:02:33]}  Bb7 {[%clk 0:02:44]} 11. exd5 {[%clk 0:02:32]}  Nxd5 {[%clk 0:02:44]} 12. c4 {[%clk 0:02:31]}  bxc4 {[%clk 0:02:41]} 13. dxc4 {[%clk 0:02:28]}  Ndb4 {[%clk 0:02:41]} 14. Ne4 {[%clk 0:02:28]}  Qd3 {[%clk 0:02:37]} 15. a3 {[%clk 0:02:21]}  Qxe2 {[%clk 0:02:35]} 16. Rxe2 {[%clk 0:02:22]}  Nd3 {[%clk 0:02:33]} 17. Be3 {[%clk 0:02:22]}  O-O {[%clk 0:02:26]} 18. Rd1 {[%clk 0:02:23]}  Rfd8 {[%clk 0:02:25]} 19. Red2 {[%clk 0:02:23]}  Nxb2 {[%clk 0:02:22]} 20. Rxd8+ {[%clk 0:02:18]}  Rxd8 {[%clk 0:02:23]} 21. Rb1 {[%clk 0:02:13]}  Rd1+ {[%clk 0:02:22]} 22. Rxd1 {[%clk 0:02:12]}  Nxd1 {[%clk 0:02:23]} 23. Bxc5 {[%clk 0:02:12]}  Nb2 {[%clk 0:02:12]} 24. Nfd2 {[%clk 0:02:09]}  Ba6 {[%clk 0:01:58]} 25. Bxe7 {[%clk 0:01:50]}  Nxe7 {[%clk 0:01:58]} 26. c5 {[%clk 0:01:49]}  Kf8 {[%clk 0:01:47]} 27. Nd6 {[%clk 0:01:46]}  Nc8 {[%clk 0:01:44]} 28. Bc6 {[%clk 0:01:30]}  Ke7 {[%clk 0:01:41]} 29. Nxc8+ {[%clk 0:01:29]}  Bxc8 {[%clk 0:01:42]} 30. Kf1 {[%clk 0:01:29]}  Nd3 {[%clk 0:01:39]} 31. Bxa4 {[%clk 0:01:27]}  Nxc5 {[%clk 0:01:40]} 32. Bb5 {[%clk 0:01:27]}  Kd6 {[%clk 0:01:38]} 33. Ke2 {[%clk 0:01:26]}  Bb7 {[%clk 0:01:30]} 34. Ke3 {[%clk 0:01:26]}  Bc6 {[%clk 0:01:18]} 35. Nc4+ {[%clk 0:01:23]}  Kc7 {[%clk 0:01:16]} 36. Bxc6 {[%clk 0:01:22]}  Kxc6 {[%clk 0:01:17]} 37. Ne5+ {[%clk 0:01:20]}  Kd5 {[%clk 0:01:18]} 38. Nxf7 {[%clk 0:01:21]}  e5 {[%clk 0:01:11]} 39. f3 {[%clk 0:01:18]}  h6 {[%clk 0:01:10]} 40. h5 {[%clk 0:01:12]}  e4 {[%clk 0:00:45]} 41. fxe4+ {[%clk 0:00:54]}  Nxe4 {[%clk 0:00:46]} 42. g4 {[%clk 0:00:54]}  Nf6 {[%clk 0:00:43]} 43. Kf4 {[%clk 0:00:53]}  Ke6 {[%clk 0:00:42]} 44. Nd8+ {[%clk 0:00:52]}  Kd7 {[%clk 0:00:40]} 45. Nb7 {[%clk 0:00:53]}  Kc6 {[%clk 0:00:36]} 46. Na5+ {[%clk 0:00:40]}  Kb5 {[%clk 0:00:37]} 47. Nb3 {[%clk 0:00:41]}  Ka4 {[%clk 0:00:35]} 48. Nc5+ {[%clk 0:00:39]}  Kxa3 {[%clk 0:00:35]} 49. Ne6 {[%clk 0:00:40]}  Ne8 {[%clk 0:00:35]} 50. Kf5 {[%clk 0:00:41]}  Kb4 {[%clk 0:00:29]} 51. Kg6 {[%clk 0:00:32]}  Nf6 {[%clk 0:00:29]} 52. Kf5 {[%clk 0:00:28]}  Ne8 {[%clk 0:00:28]} 53. Nxg7 {[%clk 0:00:26]}  Nxg7+ {[%clk 0:00:28]} 54. Kg6 {[%clk 0:00:27]}  Ne6 {[%clk 0:00:12]} 55. Kxh6 {[%clk 0:00:25]}  Kc5 {[%clk 0:00:13]} 56. Kg6 {[%clk 0:00:18]}  Kd6 {[%clk 0:00:11]} 57. h6 {[%clk 0:00:19]}  Nf4+ {[%clk 0:00:03]} 58. Kf5 {[%clk 0:00:16]}  Nd5 {[%clk 0:00:02]} 59. h7 {[%clk 0:00:14]}  Ne7+ {[%clk 0:00:02]} 60. Kf6 {[%clk 0:00:13]}  Nd5+ {[%clk 0:00:01]} 61. Kg7 {[%clk 0:00:13]} 1-0

[Event "November 21 Early 2023"]
[Site "https://www.chess.com"]
[Date "2023.11.21"]
[Round "4"]
[White "Vedder, Richard"]
[Black "Sadykov, Ramil"]
[Result "0-1"]
[Board "96"]
[TimeControl "180+1"]
[WhiteFideId "1004166"]
[BlackFideId "24113590"]
[WhiteElo "2168"]
[BlackElo "2245"]
[WhiteTeam "NED"]
[BlackTeam "FID"]
[WhiteClock "0:01:22"]
[BlackClock "0:00:28"]

1. d4 {[%clk 0:03:00]}  d6 {[%clk 0:03:00]} 2. e4 {[%clk 0:02:59]}  Nf6 {[%clk 0:02:58]} 3. Nc3 {[%clk 0:03:00]}  e5 {[%clk 0:02:58]} 4. Nf3 {[%clk 0:02:59]}  Nbd7 {[%clk 0:02:58]} 5. Bc4 {[%clk 0:02:59]}  Be7 {[%clk 0:02:58]} 6. O-O {[%clk 0:02:59]}  O-O {[%clk 0:02:59]} 7. h3 {[%clk 0:03:00]}  c6 {[%clk 0:02:58]} 8. a4 {[%clk 0:02:59]}  a5 {[%clk 0:02:56]} 9. Re1 {[%clk 0:02:59]}  Qc7 {[%clk 0:02:52]} 10. Be3 {[%clk 0:02:59]}  Re8 {[%clk 0:02:47]} 11. b3 {[%clk 0:02:57]}  exd4 {[%clk 0:02:43]} 12. Bxd4 {[%clk 0:02:51]}  Ne5 {[%clk 0:02:42]} 13. Nxe5 {[%clk 0:02:48]}  dxe5 {[%clk 0:02:42]} 14. Be3 {[%clk 0:02:48]}  Bb4 {[%clk 0:02:30]} 15. Bd2 {[%clk 0:02:46]}  Be6 {[%clk 0:02:21]} 16. Bd3 {[%clk 0:02:46]}  Rad8 {[%clk 0:02:18]} 17. Qf3 {[%clk 0:02:42]}  Nd7 {[%clk 0:02:15]} 18. Rad1 {[%clk 0:02:42]}  f6 {[%clk 0:02:07]} 19. Qe2 {[%clk 0:02:40]}  Qb6 {[%clk 0:02:03]} 20. Bc4 {[%clk 0:02:39]}  Nf8 {[%clk 0:02:01]} 21. Bxe6+ {[%clk 0:02:34]}  Nxe6 {[%clk 0:02:00]} 22. Qc4 {[%clk 0:02:35]}  Bc5 {[%clk 0:01:44]} 23. Be3 {[%clk 0:02:32]}  Bxe3 {[%clk 0:01:39]} 24. Rxe3 {[%clk 0:02:29]}  Rxd1+ {[%clk 0:01:32]} 25. Nxd1 {[%clk 0:02:29]}  Qd4 {[%clk 0:01:28]} 26. Qxd4 {[%clk 0:02:15]}  Nxd4 {[%clk 0:01:17]} 27. c4 {[%clk 0:02:05]}  Rd8 {[%clk 0:01:12]} 28. Nb2 {[%clk 0:01:59]}  Nc2 {[%clk 0:01:03]} 29. Rd3 {[%clk 0:01:57]}  Rxd3 {[%clk 0:00:49]} 30. Nxd3 {[%clk 0:01:58]}  Nd4 {[%clk 0:00:50]} 31. Nc1 {[%clk 0:01:56]}  Kf7 {[%clk 0:00:48]} 32. f3 {[%clk 0:01:56]}  Ke6 {[%clk 0:00:46]} 33. Kf2 {[%clk 0:01:56]}  Kd6 {[%clk 0:00:46]} 34. Ke3 {[%clk 0:01:57]}  b5 {[%clk 0:00:40]} 35. cxb5 {[%clk 0:01:55]}  cxb5 {[%clk 0:00:40]} 36. axb5 {[%clk 0:01:52]}  Kc5 {[%clk 0:00:41]} 37. Kd3 {[%clk 0:01:49]}  Nxb5 {[%clk 0:00:33]} 38. Na2 {[%clk 0:01:41]}  Nd4 {[%clk 0:00:33]} 39. Kc3 {[%clk 0:01:34]}  Ne2+ {[%clk 0:00:33]} 40. Kd3 {[%clk 0:01:34]}  Nf4+ {[%clk 0:00:34]} 41. Kc3 {[%clk 0:01:33]}  Nxg2 {[%clk 0:00:34]} 42. b4+ {[%clk 0:01:32]}  axb4+ {[%clk 0:00:35]} 43. Nxb4 {[%clk 0:01:30]}  Nf4 {[%clk 0:00:31]} 44. Nc2 {[%clk 0:01:29]}  Nxh3 {[%clk 0:00:30]} 45. Kd3 {[%clk 0:01:30]}  Nf4+ {[%clk 0:00:30]} 46. Ke3 {[%clk 0:01:31]}  g6 {[%clk 0:00:30]} 47. Ne1 {[%clk 0:01:29]}  Kc4 {[%clk 0:00:29]} 48. Nc2 {[%clk 0:01:28]}  Kb3 {[%clk 0:00:29]} 49. Ne1 {[%clk 0:01:22]}  Kc3 {[%clk 0:00:28]} 0-1

[Event "November 21 Early 2023"]
[Site "https://www.chess.com"]
[Date "2023.11.21"]
[Round "4"]
[White "FrenchHarvey"]
[Black "Miszler, Levente"]
[Result "0-1"]
[Board "98"]
[TimeControl "180+1"]
[BlackFideId "763276"]
[WhiteElo "2671"]
[BlackElo "2186"]
[BlackTeam "HUN"]
[WhiteClock "0:02:07"]
[BlackClock "0:02:06"]

1. e4 {[%clk 0:03:00]}  e6 {[%clk 0:02:59]} 2. d4 {[%clk 0:03:00]}  d5 {[%clk 0:03:00]} 3. e5 {[%clk 0:03:01]}  c5 {[%clk 0:03:00]} 4. c3 {[%clk 0:03:02]}  Nc6 {[%clk 0:03:00]} 5. Nf3 {[%clk 0:03:03]}  Bd7 {[%clk 0:03:01]} 6. Bd3 {[%clk 0:03:03]}  cxd4 {[%clk 0:03:00]} 7. O-O {[%clk 0:03:03]}  f6 {[%clk 0:02:56]} 8. exf6 {[%clk 0:03:02]}  Nxf6 {[%clk 0:02:57]} 9. cxd4 {[%clk 0:03:02]}  Bd6 {[%clk 0:02:57]} 10. Nc3 {[%clk 0:03:02]}  O-O {[%clk 0:02:57]} 11. Re1 {[%clk 0:03:02]}  a6 {[%clk 0:02:48]} 12. Bg5 {[%clk 0:02:55]}  Qc7 {[%clk 0:02:47]} 13. Bh4 {[%clk 0:02:53]}  Ng4 {[%clk 0:02:44]} 14. Bg3 {[%clk 0:02:48]}  Bxg3 {[%clk 0:02:40]} 15. hxg3 {[%clk 0:02:47]}  Rf6 {[%clk 0:02:38]} 16. Bxh7+ {[%clk 0:02:43]}  Kxh7 {[%clk 0:02:38]} 17. Ng5+ {[%clk 0:02:42]}  Kg8 {[%clk 0:02:38]} 18. Qxg4 {[%clk 0:02:43]}  Raf8 {[%clk 0:02:30]} 19. Nf3 {[%clk 0:02:37]}  Qb6 {[%clk 0:02:22]} 20. Na4 {[%clk 0:02:32]}  Qb4 {[%clk 0:02:21]} 21. Nc5 {[%clk 0:02:31]}  Rxf3 {[%clk 0:02:07]} 22. gxf3 {[%clk 0:02:28]}  Nxd4 {[%clk 0:02:08]} 23. Nxd7 {[%clk 0:02:18]}  Nxf3+ {[%clk 0:02:07]} 24. Kh1 {[%clk 0:02:07]}  Qxg4 {[%clk 0:02:06]} 0-1

[Event "November 21 Early 2023"]
[Site "https://www.chess.com"]
[Date "2023.11.21"]
[Round "4"]
[White "Piesik, Piotr"]
[Black "Hoffmann, Asa"]
[Result "1-0"]
[Board "104"]
[TimeControl "180+1"]
[WhiteFideId "1136194"]
[BlackFideId "2001470"]
[WhiteElo "2309"]
[BlackElo "2117"]
[WhiteTeam "CZE"]
[BlackTeam "USA"]
[WhiteClock "0:00:13"]
[BlackClock "0:00:15"]

1. Nf3 {[%clk 0:03:00]}  d6 {[%clk 0:02:56]} 2. d4 {[%clk 0:03:00]}  Bg4 {[%clk 0:02:55]} 3. Nbd2 {[%clk 0:02:58]}  Nd7 {[%clk 0:02:54]} 4. g3 {[%clk 0:02:55]}  c6 {[%clk 0:02:53]} 5. Bg2 {[%clk 0:02:55]}  e5 {[%clk 0:02:53]} 6. dxe5 {[%clk 0:02:55]}  dxe5 {[%clk 0:02:53]} 7. O-O {[%clk 0:02:56]}  Ngf6 {[%clk 0:02:53]} 8. e4 {[%clk 0:02:56]}  Bc5 {[%clk 0:02:46]} 9. h3 {[%clk 0:02:56]}  Bh5 {[%clk 0:02:46]} 10. Qe1 {[%clk 0:02:56]}  Qe7 {[%clk 0:02:42]} 11. Nb3 {[%clk 0:02:53]}  Bb6 {[%clk 0:02:42]} 12. a4 {[%clk 0:02:52]}  a5 {[%clk 0:02:39]} 13. Nh4 {[%clk 0:02:51]}  Bg6 {[%clk 0:02:29]} 14. Be3 {[%clk 0:02:47]}  Qb4 {[%clk 0:02:21]} 15. Bd2 {[%clk 0:02:41]}  Qc4 {[%clk 0:02:17]} 16. Bxa5 {[%clk 0:02:32]}  Bxa5 {[%clk 0:02:05]} 17. Nxa5 {[%clk 0:02:32]}  Qxc2 {[%clk 0:02:04]} 18. Nxb7 {[%clk 0:02:32]}  O-O {[%clk 0:01:58]} 19. Nxg6 {[%clk 0:02:31]}  hxg6 {[%clk 0:01:57]} 20. Qc3 {[%clk 0:02:29]}  Qxc3 {[%clk 0:01:39]} 21. bxc3 {[%clk 0:02:29]}  Rfb8 {[%clk 0:01:39]} 22. Nd6 {[%clk 0:02:29]}  Rb3 {[%clk 0:01:31]} 23. a5 {[%clk 0:02:18]}  Nc5 {[%clk 0:01:30]} 24. Nc4 {[%clk 0:02:07]}  Nfd7 {[%clk 0:01:22]} 25. Rfc1 {[%clk 0:02:06]}  Kf8 {[%clk 0:01:19]} 26. f3 {[%clk 0:02:00]}  Ke7 {[%clk 0:01:19]} 27. Bf1 {[%clk 0:02:00]}  f5 {[%clk 0:01:12]} 28. exf5 {[%clk 0:01:58]}  gxf5 {[%clk 0:01:12]} 29. Ne3 {[%clk 0:01:44]}  g6 {[%clk 0:01:11]} 30. Bc4 {[%clk 0:01:38]}  Rb2 {[%clk 0:01:08]} 31. Rc2 {[%clk 0:01:37]}  Rxc2 {[%clk 0:01:05]} 32. Nxc2 {[%clk 0:01:37]}  e4 {[%clk 0:01:05]} 33. f4 {[%clk 0:01:35]}  Kd6 {[%clk 0:01:01]} 34. Nb4 {[%clk 0:01:26]}  Kc7 {[%clk 0:01:00]} 35. a6 {[%clk 0:01:21]}  e3 {[%clk 0:00:58]} 36. Kg2 {[%clk 0:01:17]}  Ne4 {[%clk 0:00:58]} 37. Bf7 {[%clk 0:01:14]}  Nxc3 {[%clk 0:00:53]} 38. Bxg6 {[%clk 0:01:11]}  e2 {[%clk 0:00:48]} 39. Nd3 {[%clk 0:00:47]}  Kd6 {[%clk 0:00:46]} 40. Bxf5 {[%clk 0:00:47]}  Nc5 {[%clk 0:00:46]} 41. Nxc5 {[%clk 0:00:44]}  Kxc5 {[%clk 0:00:46]} 42. Kf2 {[%clk 0:00:44]}  Kd4 {[%clk 0:00:44]} 43. a7 {[%clk 0:00:39]}  c5 {[%clk 0:00:42]} 44. h4 {[%clk 0:00:39]}  c4 {[%clk 0:00:42]} 45. h5 {[%clk 0:00:39]}  Nb5 {[%clk 0:00:39]} 46. Kxe2 {[%clk 0:00:35]}  Nd6 {[%clk 0:00:36]} 47. Bg6 {[%clk 0:00:29]}  c3 {[%clk 0:00:36]} 48. h6 {[%clk 0:00:24]}  Nc4 {[%clk 0:00:34]} 49. h7 {[%clk 0:00:24]}  Nd2 {[%clk 0:00:30]} 50. h8=Q+ {[%clk 0:00:20]}  Rxh8 {[%clk 0:00:29]} 51. a8=Q {[%clk 0:00:14]}  Rxa8 {[%clk 0:00:15]} 52. Rxa8 {[%clk 0:00:13]} 1-0

[Event "November 21 Early 2023"]
[Site "https://www.chess.com"]
[Date "2023.11.21"]
[Round "4"]
[White "Rose, Felix"]
[Black "Nagare Kaivalya Sandip"]
[Result "0-1"]
[Board "105"]
[TimeControl "180+1"]
[WhiteFideId "5105722"]
[BlackFideId "25957929"]
[WhiteElo "2039"]
[BlackElo "2024"]
[WhiteTeam "MEX"]
[BlackTeam "IND"]
[WhiteClock "0:00:12"]
[BlackClock "0:01:15"]

1. e4 {[%clk 0:03:00]}  e5 {[%clk 0:02:51]} 2. Nf3 {[%clk 0:02:59]}  Nc6 {[%clk 0:02:50]} 3. Bb5 {[%clk 0:02:58]}  a6 {[%clk 0:02:50]} 4. Ba4 {[%clk 0:02:58]}  Nf6 {[%clk 0:02:50]} 5. O-O {[%clk 0:02:58]}  b5 {[%clk 0:02:50]} 6. Bb3 {[%clk 0:02:58]}  Be7 {[%clk 0:02:50]} 7. Re1 {[%clk 0:02:58]}  O-O {[%clk 0:02:48]} 8. h3 {[%clk 0:02:59]}  d6 {[%clk 0:02:48]} 9. c3 {[%clk 0:02:59]}  Na5 {[%clk 0:02:45]} 10. Bc2 {[%clk 0:02:59]}  c5 {[%clk 0:02:46]} 11. d4 {[%clk 0:02:59]}  Qc7 {[%clk 0:02:45]} 12. Nbd2 {[%clk 0:02:57]}  Re8 {[%clk 0:02:38]} 13. Nf1 {[%clk 0:02:52]}  Nc6 {[%clk 0:02:32]} 14. Be3 {[%clk 0:02:42]}  Bf8 {[%clk 0:02:28]} 15. Ng3 {[%clk 0:02:41]}  g6 {[%clk 0:02:24]} 16. a4 {[%clk 0:02:24]}  Rb8 {[%clk 0:02:18]} 17. axb5 {[%clk 0:02:23]}  axb5 {[%clk 0:02:19]} 18. d5 {[%clk 0:02:23]}  Na5 {[%clk 0:02:16]} 19. b3 {[%clk 0:02:19]}  Bg7 {[%clk 0:02:15]} 20. Qd2 {[%clk 0:02:09]}  Bd7 {[%clk 0:02:15]} 21. Ra2 {[%clk 0:02:03]}  c4 {[%clk 0:02:10]} 22. b4 {[%clk 0:02:00]}  Nb3 {[%clk 0:02:10]} 23. Bxb3 {[%clk 0:01:44]}  cxb3 {[%clk 0:02:09]} 24. Rb2 {[%clk 0:01:45]}  Qc4 {[%clk 0:02:07]} 25. Qe2 {[%clk 0:01:34]}  Qxc3 {[%clk 0:02:04]} 26. Reb1 {[%clk 0:01:17]}  Qc4 {[%clk 0:01:56]} 27. Nd2 {[%clk 0:00:54]}  Qxb4 {[%clk 0:01:36]} 28. Rxb3 {[%clk 0:00:54]}  Qa4 {[%clk 0:01:37]} 29. Rb4 {[%clk 0:00:49]}  Qa6 {[%clk 0:01:36]} 30. Nb3 {[%clk 0:00:37]}  Qa3 {[%clk 0:01:30]} 31. Bd2 {[%clk 0:00:30]}  Rec8 {[%clk 0:01:29]} 32. Be1 {[%clk 0:00:27]}  Ra8 {[%clk 0:01:21]} 33. Ra1 {[%clk 0:00:19]}  Qxa1 {[%clk 0:01:21]} 34. Nxa1 {[%clk 0:00:19]}  Rxa1 {[%clk 0:01:22]} 35. Kh2 {[%clk 0:00:20]}  h5 {[%clk 0:01:22]} 36. Nf1 {[%clk 0:00:18]}  Rcc1 {[%clk 0:01:20]} 37. Bd2 {[%clk 0:00:11]}  Rxf1 {[%clk 0:01:18]} 38. g3 {[%clk 0:00:12]}  Rh1+ {[%clk 0:01:17]} 39. Kg2 {[%clk 0:00:12]}  Bxh3+ {[%clk 0:01:15]} 40. Kf3 {[%clk 0:00:12]} 0-1

[Event "November 21 Early 2023"]
[Site "https://www.chess.com"]
[Date "2023.11.21"]
[Round "4"]
[White "Ahmad, Khagan"]
[Black "Minina, Veronika"]
[Result "1-0"]
[Board "106"]
[TimeControl "180+1"]
[WhiteFideId "13431552"]
[BlackFideId "4174780"]
[WhiteElo "2160"]
[BlackElo "1905"]
[WhiteTeam "AZE"]
[BlackTeam "RUS"]
[WhiteClock "0:00:08"]
[BlackClock "0:00:02"]

1. Nf3 {[%clk 0:03:00]}  Nf6 {[%clk 0:02:59]} 2. c4 {[%clk 0:03:00]}  g6 {[%clk 0:02:59]} 3. Nc3 {[%clk 0:02:59]}  Bg7 {[%clk 0:03:00]} 4. e4 {[%clk 0:02:59]}  d6 {[%clk 0:03:00]} 5. d4 {[%clk 0:02:59]}  O-O {[%clk 0:03:00]} 6. Be2 {[%clk 0:02:59]}  Bg4 {[%clk 0:02:56]} 7. O-O {[%clk 0:02:58]}  Nfd7 {[%clk 0:02:55]} 8. Be3 {[%clk 0:02:47]}  Nc6 {[%clk 0:02:42]} 9. d5 {[%clk 0:02:46]}  Bxf3 {[%clk 0:02:41]} 10. gxf3 {[%clk 0:02:43]}  Na5 {[%clk 0:02:25]} 11. Qc2 {[%clk 0:02:33]}  c5 {[%clk 0:02:25]} 12. a3 {[%clk 0:02:31]}  Qc8 {[%clk 0:01:56]} 13. Rfc1 {[%clk 0:02:23]}  Ne5 {[%clk 0:01:56]} 14. Nb1 {[%clk 0:02:02]}  Qh3 {[%clk 0:01:54]} 15. Nd2 {[%clk 0:02:01]}  Rac8 {[%clk 0:01:35]} 16. Qd1 {[%clk 0:01:49]}  b6 {[%clk 0:01:24]} 17. b4 {[%clk 0:01:35]}  cxb4 {[%clk 0:00:56]} 18. axb4 {[%clk 0:01:20]}  Naxc4 {[%clk 0:00:55]} 19. Nxc4 {[%clk 0:01:08]}  Nxc4 {[%clk 0:00:55]} 20. Rxc4 {[%clk 0:01:03]}  Rxc4 {[%clk 0:00:41]} 21. Bxc4 {[%clk 0:01:04]}  Bxa1 {[%clk 0:00:39]} 22. Bf1 {[%clk 0:01:01]}  Qh5 {[%clk 0:00:28]} 23. Qxa1 {[%clk 0:01:00]}  Qxf3 {[%clk 0:00:28]} 24. Bh6 {[%clk 0:00:56]}  f6 {[%clk 0:00:11]} 25. Bxf8 {[%clk 0:00:55]}  Kxf8 {[%clk 0:00:12]} 26. Bg2 {[%clk 0:00:53]}  Qe2 {[%clk 0:00:12]} 27. Qc1 {[%clk 0:00:46]}  Kf7 {[%clk 0:00:09]} 28. Qe3 {[%clk 0:00:40]}  Qd1+ {[%clk 0:00:09]} 29. Bf1 {[%clk 0:00:39]}  Qb1 {[%clk 0:00:07]} 30. b5 {[%clk 0:00:38]}  Kg7 {[%clk 0:00:06]} 31. Qd3 {[%clk 0:00:34]}  Qb2 {[%clk 0:00:06]} 32. Qc4 {[%clk 0:00:34]}  Qe5 {[%clk 0:00:05]} 33. Bd3 {[%clk 0:00:26]}  Qg5+ {[%clk 0:00:05]} 34. Kf1 {[%clk 0:00:27]}  h5 {[%clk 0:00:05]} 35. Qc7 {[%clk 0:00:26]}  Kf7 {[%clk 0:00:05]} 36. Ke2 {[%clk 0:00:21]}  h4 {[%clk 0:00:05]} 37. Qxa7 {[%clk 0:00:21]}  Qg4+ {[%clk 0:00:05]} 38. Ke3 {[%clk 0:00:17]}  Qg5+ {[%clk 0:00:05]} 39. Ke2 {[%clk 0:00:16]}  Qg4+ {[%clk 0:00:05]} 40. Ke1 {[%clk 0:00:14]}  Qg1+ {[%clk 0:00:05]} 41. Bf1 {[%clk 0:00:15]}  Qxh2 {[%clk 0:00:06]} 42. Qxb6 {[%clk 0:00:15]}  Qe5 {[%clk 0:00:07]} 43. Qe3 {[%clk 0:00:13]}  Qa1+ {[%clk 0:00:06]} 44. Ke2 {[%clk 0:00:13]}  Qb2+ {[%clk 0:00:07]} 45. Kf3 {[%clk 0:00:13]}  Qe5 {[%clk 0:00:07]} 46. Kg2 {[%clk 0:00:10]}  g5 {[%clk 0:00:07]} 47. b6 {[%clk 0:00:10]}  h3+ {[%clk 0:00:06]} 48. Kxh3 {[%clk 0:00:09]}  f5 {[%clk 0:00:06]} 49. exf5 {[%clk 0:00:07]}  Qxf5+ {[%clk 0:00:07]} 50. Kg3 {[%clk 0:00:07]}  Kg7 {[%clk 0:00:06]} 51. Qc3+ {[%clk 0:00:06]}  Kh7 {[%clk 0:00:06]} 52. Bd3 {[%clk 0:00:06]}  Kg6 {[%clk 0:00:07]} 53. Bxf5+ {[%clk 0:00:06]}  Kxf5 {[%clk 0:00:08]} 54. b7 {[%clk 0:00:07]}  Kg6 {[%clk 0:00:08]} 55. b8=Q {[%clk 0:00:08]}  g4 {[%clk 0:00:02]} 56. Qg8+ {[%clk 0:00:08]} 1-0